[Event "Titled Tuesday Blitz May 2 Late 2023"]
[White "Rose, Felix"]
[Black "Martic, Ivan"]
[WhiteFideId "5105722"]
[BlackFideId "929301"]
[WhiteElo "2039"]
[BlackElo "2360"]
[Result "1-0"]
[Round "03"]
[TimeControl "180+2"]
[Date "2023.05.02"]
[WhiteClock "0:00:07"]
[BlackClock "0:00:22"]

1. d4 {[%clk 0:03:00]}  d5 {[%clk 0:02:58]} 2. Nf3 {[%clk 0:03:00]}  Nc6 {[%clk 0:02:58]} 3. e3 {[%clk 0:03:00]}  Bg4 {[%clk 0:02:58]} 4. c4 {[%clk 0:02:59]}  e5 {[%clk 0:02:53]} 5. cxd5 {[%clk 0:02:53]}  Qxd5 {[%clk 0:02:52]} 6. Nc3 {[%clk 0:02:53]}  Bb4 {[%clk 0:02:52]} 7. Bd2 {[%clk 0:02:49]}  Bxc3 {[%clk 0:02:52]} 8. bxc3 {[%clk 0:02:45]}  Nf6 {[%clk 0:02:40]} 9. h3 {[%clk 0:02:36]}  Bh5 {[%clk 0:02:31]} 10. c4 {[%clk 0:01:59]}  Qd6 {[%clk 0:02:30]} 11. d5 {[%clk 0:01:53]}  Ne7 {[%clk 0:02:29]} 12. Qa4+ {[%clk 0:01:49]}  Nd7 {[%clk 0:02:25]} 13. Bb4 {[%clk 0:01:46]}  c5 {[%clk 0:02:17]} 14. dxc6 {[%clk 0:01:33]}  Qxc6 {[%clk 0:02:15]} 15. Qxc6 {[%clk 0:01:23]}  Nxc6 {[%clk 0:02:16]} 16. Bd6 {[%clk 0:01:20]}  f6 {[%clk 0:02:11]} 17. g4 {[%clk 0:01:10]}  Bg6 {[%clk 0:02:08]} 18. Be2 {[%clk 0:01:10]}  b6 {[%clk 0:02:05]} 19. O-O {[%clk 0:01:06]}  O-O-O {[%clk 0:01:59]} 20. Rfc1 {[%clk 0:00:59]}  Nc5 {[%clk 0:01:56]} 21. Bxc5 {[%clk 0:00:58]}  bxc5 {[%clk 0:01:57]} 22. Nh4 {[%clk 0:00:55]}  Rd2 {[%clk 0:01:55]} 23. Nxg6 {[%clk 0:00:47]}  hxg6 {[%clk 0:01:56]} 24. Bf3 {[%clk 0:00:47]}  Nb4 {[%clk 0:01:41]} 25. Rd1 {[%clk 0:00:31]}  Rxd1+ {[%clk 0:01:35]} 26. Rxd1 {[%clk 0:00:30]}  Rxh3 {[%clk 0:01:34]} 27. Kg2 {[%clk 0:00:30]}  Rh8 {[%clk 0:01:33]} 28. a3 {[%clk 0:00:29]}  Nc2 {[%clk 0:01:25]} 29. Rd6 {[%clk 0:00:27]}  Ne1+ {[%clk 0:01:17]} 30. Kg3 {[%clk 0:00:27]}  Nxf3 {[%clk 0:01:18]} 31. Kxf3 {[%clk 0:00:28]}  Kc7 {[%clk 0:01:17]} 32. Ra6 {[%clk 0:00:25]}  Kb7 {[%clk 0:01:12]} 33. Re6 {[%clk 0:00:24]}  Rc8 {[%clk 0:01:12]} 34. g5 {[%clk 0:00:24]}  Rc6 {[%clk 0:01:08]} 35. Re7+ {[%clk 0:00:21]}  Kb8 {[%clk 0:01:01]} 36. Rxg7 {[%clk 0:00:20]}  fxg5 {[%clk 0:01:00]} 37. Ke4 {[%clk 0:00:20]}  Rf6 {[%clk 0:00:54]} 38. Kxe5 {[%clk 0:00:17]}  Rxf2 {[%clk 0:00:54]} 39. Rxg6 {[%clk 0:00:17]}  Ra2 {[%clk 0:00:51]} 40. Kd5 {[%clk 0:00:15]}  Rxa3 {[%clk 0:00:51]} 41. e4 {[%clk 0:00:16]}  Kc7 {[%clk 0:00:45]} 42. Rg7+ {[%clk 0:00:16]}  Kd8 {[%clk 0:00:44]} 43. Rxg5 {[%clk 0:00:14]}  Ke7 {[%clk 0:00:42]} 44. Rg7+ {[%clk 0:00:15]}  Kf6 {[%clk 0:00:42]} 45. Rb7 {[%clk 0:00:14]}  Rd3+ {[%clk 0:00:41]} 46. Kxc5 {[%clk 0:00:15]}  Ke5 {[%clk 0:00:41]} 47. Re7+ {[%clk 0:00:14]}  Kf6 {[%clk 0:00:41]} 48. Rxa7 {[%clk 0:00:14]}  Rd8 {[%clk 0:00:40]} 49. Kc6 {[%clk 0:00:10]}  Ke5 {[%clk 0:00:37]} 50. c5 {[%clk 0:00:09]}  Rc8+ {[%clk 0:00:36]} 51. Kb6 {[%clk 0:00:08]}  Rb8+ {[%clk 0:00:34]} 52. Kc7 {[%clk 0:00:08]}  Rb4 {[%clk 0:00:33]} 53. c6 {[%clk 0:00:08]}  Rxe4 {[%clk 0:00:34]} 54. Ra5+ {[%clk 0:00:08]}  Ke6 {[%clk 0:00:33]} 55. Kc8 {[%clk 0:00:08]}  Rc4 {[%clk 0:00:32]} 56. c7 {[%clk 0:00:08]}  Kd6 {[%clk 0:00:33]} 57. Ra6+ {[%clk 0:00:08]}  Ke7 {[%clk 0:00:32]} 58. Ra1 {[%clk 0:00:05]}  Kd6 {[%clk 0:00:32]} 59. Rd1+ {[%clk 0:00:05]}  Ke7 {[%clk 0:00:32]} 60. Rd5 {[%clk 0:00:05]}  Ke6 {[%clk 0:00:31]} 61. Rb5 {[%clk 0:00:05]}  Ke7 {[%clk 0:00:31]} 62. Kb8 {[%clk 0:00:05]}  Kd7 {[%clk 0:00:30]} 63. Rb7 {[%clk 0:00:06]}  Kd6 {[%clk 0:00:22]} 64. c8=Q {[%clk 0:00:06]}  Rxc8+ {[%clk 0:00:22]} 65. Kxc8 {[%clk 0:00:07]} 1-0


[Site "https://www.chess.com"]

[Event "Titled Tuesday Blitz May 2 Late 2023"]
[White "Ladan, Nicholas"]
[Black "Harish, Neeraj"]
[WhiteFideId "30918855"]
[BlackFideId "30958130"]
[WhiteElo "2167"]
[BlackElo "1965"]
[Result "1-0"]
[Round "03"]
[TimeControl "180+2"]
[Date "2023.05.02"]
[WhiteClock "0:00:23"]
[BlackClock "0:00:03"]

1. d4 {[%clk 0:02:33]}  Nf6 {[%clk 0:02:55]} 2. Nf3 {[%clk 0:02:32]}  d5 {[%clk 0:02:53]} 3. Bf4 {[%clk 0:02:31]}  e6 {[%clk 0:02:53]} 4. e3 {[%clk 0:02:31]}  Bd6 {[%clk 0:02:54]} 5. Nbd2 {[%clk 0:02:31]}  O-O {[%clk 0:02:52]} 6. Bd3 {[%clk 0:02:30]}  Bxf4 {[%clk 0:02:50]} 7. exf4 {[%clk 0:02:29]}  b6 {[%clk 0:02:50]} 8. O-O {[%clk 0:02:21]}  c5 {[%clk 0:02:48]} 9. c3 {[%clk 0:02:21]}  Ba6 {[%clk 0:02:48]} 10. Qe2 {[%clk 0:02:17]}  Bxd3 {[%clk 0:02:47]} 11. Qxd3 {[%clk 0:02:18]}  Nc6 {[%clk 0:02:48]} 12. Ne5 {[%clk 0:02:16]}  Rc8 {[%clk 0:02:44]} 13. Ndf3 {[%clk 0:02:15]}  Ne4 {[%clk 0:02:43]} 14. Nxc6 {[%clk 0:02:12]}  Rxc6 {[%clk 0:02:42]} 15. Ne5 {[%clk 0:02:13]}  Rc8 {[%clk 0:02:39]} 16. Rfe1 {[%clk 0:02:12]}  cxd4 {[%clk 0:02:20]} 17. Qxd4 {[%clk 0:02:09]}  Nd6 {[%clk 0:01:56]} 18. Rad1 {[%clk 0:02:02]}  Nc4 {[%clk 0:01:51]} 19. Nxc4 {[%clk 0:02:01]}  Rxc4 {[%clk 0:01:51]} 20. Qe5 {[%clk 0:01:53]}  Qb8 {[%clk 0:01:34]} 21. f5 {[%clk 0:01:46]}  Qxe5 {[%clk 0:01:23]} 22. Rxe5 {[%clk 0:01:45]}  exf5 {[%clk 0:01:18]} 23. Rxf5 {[%clk 0:01:40]}  d4 {[%clk 0:01:18]} 24. Rf4 {[%clk 0:01:34]}  Re8 {[%clk 0:01:05]} 25. Kf1 {[%clk 0:01:28]}  Kf8 {[%clk 0:01:05]} 26. Rfxd4 {[%clk 0:01:26]}  Rxd4 {[%clk 0:01:04]} 27. Rxd4 {[%clk 0:01:27]}  Re6 {[%clk 0:00:55]} 28. Rd7 {[%clk 0:01:27]}  a5 {[%clk 0:00:56]} 29. g3 {[%clk 0:01:23]}  g6 {[%clk 0:00:52]} 30. f4 {[%clk 0:01:20]}  Kg7 {[%clk 0:00:47]} 31. Kf2 {[%clk 0:01:20]}  h5 {[%clk 0:00:47]} 32. b4 {[%clk 0:01:12]}  axb4 {[%clk 0:00:43]} 33. cxb4 {[%clk 0:01:13]}  Rc6 {[%clk 0:00:43]} 34. Ke3 {[%clk 0:01:03]}  Rc2 {[%clk 0:00:17]} 35. Rd2 {[%clk 0:01:00]}  Rc4 {[%clk 0:00:16]} 36. Rd4 {[%clk 0:00:49]}  Rc2 {[%clk 0:00:16]} 37. Rd2 {[%clk 0:00:49]}  Rc4 {[%clk 0:00:16]} 38. a3 {[%clk 0:00:50]}  Rc3+ {[%clk 0:00:15]} 39. Rd3 {[%clk 0:00:50]}  Rc2 {[%clk 0:00:16]} 40. Rd6 {[%clk 0:00:48]}  Rxh2 {[%clk 0:00:15]} 41. Rxb6 {[%clk 0:00:48]}  Ra2 {[%clk 0:00:16]} 42. Ra6 {[%clk 0:00:48]}  f6 {[%clk 0:00:14]} 43. b5 {[%clk 0:00:48]}  g5 {[%clk 0:00:13]} 44. fxg5 {[%clk 0:00:47]}  fxg5 {[%clk 0:00:14]} 45. b6 {[%clk 0:00:46]}  h4 {[%clk 0:00:12]} 46. Ra7+ {[%clk 0:00:43]}  Kg6 {[%clk 0:00:10]} 47. gxh4 {[%clk 0:00:39]}  gxh4 {[%clk 0:00:10]} 48. Ra4 {[%clk 0:00:39]}  h3 {[%clk 0:00:07]} 49. b7 {[%clk 0:00:37]}  Rb2 {[%clk 0:00:06]} 50. Rg4+ {[%clk 0:00:23]}  Kf5 {[%clk 0:00:03]} 51. Rf4+ {[%clk 0:00:23]}  Ke5 {[%clk 0:00:03]} 52. Rb4 {[%clk 0:00:23]} 1-0


[Site "https://www.chess.com"]

[Event "Titled Tuesday Blitz May 2 Late 2023"]
[White "Bilan, Danila"]
[Black "Avalos Parra, Joao"]
[WhiteFideId "24161918"]
[BlackFideId "3402541"]
[WhiteElo "2182"]
[BlackElo "2173"]
[Result "1-0"]
[Round "03"]
[TimeControl "180+2"]
[Date "2023.05.02"]
[WhiteClock "0:00:05"]
[BlackClock "0:00:02"]

1. d4 {[%clk 0:03:00]}  d5 {[%clk 0:02:57]} 2. Nf3 {[%clk 0:03:00]}  Nf6 {[%clk 0:02:57]} 3. c4 {[%clk 0:02:59]}  e6 {[%clk 0:02:58]} 4. Nc3 {[%clk 0:02:59]}  Bb4 {[%clk 0:02:58]} 5. Qb3 {[%clk 0:02:59]}  c5 {[%clk 0:02:27]} 6. e3 {[%clk 0:02:56]}  Nc6 {[%clk 0:02:24]} 7. Bd2 {[%clk 0:02:41]}  dxc4 {[%clk 0:02:08]} 8. Bxc4 {[%clk 0:02:35]}  a6 {[%clk 0:02:08]} 9. a3 {[%clk 0:02:29]}  Na5 {[%clk 0:01:52]} 10. Qa2 {[%clk 0:02:24]}  Nxc4 {[%clk 0:01:49]} 11. Qxc4 {[%clk 0:02:25]}  b5 {[%clk 0:01:45]} 12. Qe2 {[%clk 0:02:19]}  cxd4 {[%clk 0:01:40]} 13. axb4 {[%clk 0:02:00]}  dxc3 {[%clk 0:01:39]} 14. Bxc3 {[%clk 0:01:59]}  O-O {[%clk 0:01:40]} 15. O-O {[%clk 0:01:55]}  Bb7 {[%clk 0:01:40]} 16. Rfd1 {[%clk 0:01:53]}  Qe7 {[%clk 0:01:40]} 17. Ne5 {[%clk 0:01:43]}  Rfd8 {[%clk 0:01:37]} 18. Nd3 {[%clk 0:01:33]}  Ne4 {[%clk 0:01:36]} 19. Bd4 {[%clk 0:01:29]}  Rac8 {[%clk 0:01:30]} 20. Rac1 {[%clk 0:01:20]}  Qg5 {[%clk 0:01:16]} 21. f3 {[%clk 0:01:00]}  Nd6 {[%clk 0:00:53]} 22. Nc5 {[%clk 0:00:57]}  Bd5 {[%clk 0:00:54]} 23. Nxa6 {[%clk 0:00:49]}  Bc4 {[%clk 0:00:52]} 24. Qf2 {[%clk 0:00:45]}  Nf5 {[%clk 0:00:52]} 25. Bc5 {[%clk 0:00:35]}  h5 {[%clk 0:00:45]} 26. e4 {[%clk 0:00:31]}  Nh4 {[%clk 0:00:42]} 27. Be3 {[%clk 0:00:25]}  Qf6 {[%clk 0:00:34]} 28. Nc5 {[%clk 0:00:24]}  Ng6 {[%clk 0:00:31]} 29. b3 {[%clk 0:00:21]}  Ne5 {[%clk 0:00:16]} 30. Bd4 {[%clk 0:00:09]}  Rxd4 {[%clk 0:00:09]} 31. Qxd4 {[%clk 0:00:05]}  Be2 {[%clk 0:00:07]} 32. f4 {[%clk 0:00:05]}  Qxf4 {[%clk 0:00:03]} 33. Re1 {[%clk 0:00:03]}  Bg4 {[%clk 0:00:03]} 34. Qf2 {[%clk 0:00:03]}  Qg5 {[%clk 0:00:02]} 35. Nxe6 {[%clk 0:00:03]}  Bxe6 {[%clk 0:00:01]} 36. Rxc8+ {[%clk 0:00:04]}  Bxc8 {[%clk 0:00:02]} 37. h4 {[%clk 0:00:05]}  Qf6 {[%clk 0:00:02]} 38. Qc5 {[%clk 0:00:05]}  Be6 {[%clk 0:00:02]} 39. Rf1 {[%clk 0:00:05]} 1-0


[Site "https://www.chess.com"]

[Event "Titled Tuesday Blitz May 2 Late 2023"]
[White "Smith, Garrett L"]
[Black "Karthik, Advaith"]
[WhiteFideId "2024829"]
[BlackFideId "30946050"]
[WhiteElo "2047"]
[BlackElo "2004"]
[Result "0-1"]
[Round "03"]
[TimeControl "180+2"]
[Date "2023.05.02"]
[WhiteClock "0:00:07"]
[BlackClock "0:00:07"]

1. e4 {[%clk 0:03:00]}  c5 {[%clk 0:02:57]} 2. a3 {[%clk 0:03:00]}  Nc6 {[%clk 0:02:56]} 3. b4 {[%clk 0:03:01]}  cxb4 {[%clk 0:02:57]} 4. axb4 {[%clk 0:03:01]}  Nxb4 {[%clk 0:02:57]} 5. d4 {[%clk 0:03:02]}  d5 {[%clk 0:02:57]} 6. c3 {[%clk 0:03:02]}  Nc6 {[%clk 0:02:57]} 7. exd5 {[%clk 0:03:03]}  Qxd5 {[%clk 0:02:58]} 8. Na3 {[%clk 0:03:03]}  e6 {[%clk 0:02:54]} 9. Nb5 {[%clk 0:03:02]}  Qd8 {[%clk 0:02:53]} 10. d5 {[%clk 0:02:32]}  exd5 {[%clk 0:02:08]} 11. Bf4 {[%clk 0:02:31]}  Qe7+ {[%clk 0:02:09]} 12. Be2 {[%clk 0:02:24]}  Ne5 {[%clk 0:02:02]} 13. Qxd5 {[%clk 0:01:53]}  f6 {[%clk 0:02:02]} 14. Nf3 {[%clk 0:01:45]}  Be6 {[%clk 0:01:56]} 15. Qe4 {[%clk 0:01:34]}  a6 {[%clk 0:01:17]} 16. Nxe5 {[%clk 0:01:28]}  fxe5 {[%clk 0:01:12]} 17. Qxe5 {[%clk 0:01:26]}  Rc8 {[%clk 0:01:08]} 18. Nc7+ {[%clk 0:01:15]}  Kf7 {[%clk 0:01:02]} 19. O-O {[%clk 0:01:11]}  Bd7 {[%clk 0:00:48]} 20. Bc4+ {[%clk 0:01:08]}  Kg6 {[%clk 0:00:48]} 21. Bd3+ {[%clk 0:00:59]}  Kf7 {[%clk 0:00:48]} 22. Qd5+ {[%clk 0:00:56]}  Be6 {[%clk 0:00:46]} 23. Nxe6 {[%clk 0:00:55]}  Qxe6 {[%clk 0:00:46]} 24. Qxb7+ {[%clk 0:00:56]}  Be7 {[%clk 0:00:45]} 25. Rxa6 {[%clk 0:00:52]}  Qg4 {[%clk 0:00:24]} 26. Bd6 {[%clk 0:00:51]}  Re8 {[%clk 0:00:20]} 27. Re1 {[%clk 0:00:50]}  Qg5 {[%clk 0:00:17]} 28. Ra7 {[%clk 0:00:44]}  h5 {[%clk 0:00:15]} 29. Bxe7 {[%clk 0:00:42]}  Nxe7 {[%clk 0:00:16]} 30. Bc4+ {[%clk 0:00:37]}  Kf8 {[%clk 0:00:16]} 31. Re3 {[%clk 0:00:35]}  Rh6 {[%clk 0:00:14]} 32. h4 {[%clk 0:00:31]}  Qc5 {[%clk 0:00:11]} 33. Bb5 {[%clk 0:00:22]}  Rb6 {[%clk 0:00:08]} 34. Rf3+ {[%clk 0:00:19]}  Kg8 {[%clk 0:00:08]} 35. Qd7 {[%clk 0:00:07]}  Qxb5 {[%clk 0:00:07]} 0-1


[Site "https://www.chess.com"]

[Event "Titled Tuesday Blitz May 2 Late 2023"]
[White "Ferriz Barrios, Andres"]
[Black "Suvorov, Luca"]
[WhiteFideId "5104467"]
[BlackFideId "12977071"]
[WhiteElo "2102"]
[BlackElo "2202"]
[Result "1-0"]
[Round "03"]
[TimeControl "180+2"]
[Date "2023.05.02"]
[WhiteClock "0:01:54"]
[BlackClock "0:00:07"]

1. d4 {[%clk 0:02:57]}  g6 {[%clk 0:03:00]} 2. Nf3 {[%clk 0:02:56]}  Bg7 {[%clk 0:03:00]} 3. Nc3 {[%clk 0:02:57]}  d6 {[%clk 0:02:59]} 4. Bf4 {[%clk 0:02:58]}  Nc6 {[%clk 0:02:53]} 5. Qd2 {[%clk 0:02:57]}  Nf6 {[%clk 0:02:54]} 6. O-O-O {[%clk 0:02:56]}  Bf5 {[%clk 0:02:45]} 7. h3 {[%clk 0:02:52]}  h5 {[%clk 0:02:41]} 8. Ng5 {[%clk 0:02:50]}  d5 {[%clk 0:02:29]} 9. f3 {[%clk 0:02:50]}  Bh6 {[%clk 0:02:02]} 10. e4 {[%clk 0:02:41]}  dxe4 {[%clk 0:01:54]} 11. fxe4 {[%clk 0:02:40]}  Bxg5 {[%clk 0:01:54]} 12. Bxg5 {[%clk 0:02:40]}  Nxe4 {[%clk 0:01:53]} 13. Nxe4 {[%clk 0:02:39]}  Bxe4 {[%clk 0:01:54]} 14. d5 {[%clk 0:02:39]}  f6 {[%clk 0:01:30]} 15. dxc6 {[%clk 0:02:34]}  fxg5 {[%clk 0:01:30]} 16. Qe3 {[%clk 0:02:32]}  Bd5 {[%clk 0:01:25]} 17. Bc4 {[%clk 0:02:31]}  bxc6 {[%clk 0:01:22]} 18. Qxg5 {[%clk 0:02:29]}  Qd6 {[%clk 0:01:19]} 19. Bxd5 {[%clk 0:02:28]}  cxd5 {[%clk 0:01:19]} 20. Rxd5 {[%clk 0:02:28]}  Qb6 {[%clk 0:01:18]} 21. Re1 {[%clk 0:02:26]}  O-O {[%clk 0:01:15]} 22. Qh6 {[%clk 0:02:22]}  Rae8 {[%clk 0:00:52]} 23. Rde5 {[%clk 0:02:06]}  Rf6 {[%clk 0:00:44]} 24. g4 {[%clk 0:02:06]}  hxg4 {[%clk 0:00:31]} 25. hxg4 {[%clk 0:02:07]}  Qf2 {[%clk 0:00:30]} 26. Kb1 {[%clk 0:01:59]}  a5 {[%clk 0:00:11]} 27. a3 {[%clk 0:01:57]}  Qf4 {[%clk 0:00:09]} 28. Rg5 {[%clk 0:01:54]}  Qd2 {[%clk 0:00:07]} 29. Rxg6+ {[%clk 0:01:54]}  Kf7 {[%clk 0:00:06]} 30. Qxd2 {[%clk 0:01:55]}  Rxg6 {[%clk 0:00:06]} 31. Rf1+ {[%clk 0:01:54]}  Kg7 {[%clk 0:00:06]} 32. Qd4+ {[%clk 0:01:54]}  e5 {[%clk 0:00:07]} 33. Qd7+ {[%clk 0:01:54]} 1-0


[Site "https://www.chess.com"]

[Event "Titled Tuesday Blitz May 2 Late 2023"]
[White "Debray, Christopher"]
[Black "Kapp, Martin"]
[WhiteFideId "630810"]
[BlackFideId "24651680"]
[WhiteElo "2340"]
[BlackElo "2177"]
[Result "1/2-1/2"]
[Round "03"]
[TimeControl "180+2"]
[Date "2023.05.02"]
[WhiteClock "0:00:10"]
[BlackClock "0:00:18"]

1. d4 {[%clk 0:03:00]}  Nf6 {[%clk 0:02:59]} 2. c4 {[%clk 0:03:01]}  e6 {[%clk 0:02:58]} 3. Nc3 {[%clk 0:03:01]}  Bb4 {[%clk 0:02:58]} 4. a3 {[%clk 0:03:01]}  Bxc3+ {[%clk 0:02:58]} 5. bxc3 {[%clk 0:03:02]}  O-O {[%clk 0:02:58]} 6. e3 {[%clk 0:03:01]}  d6 {[%clk 0:02:56]} 7. Bd3 {[%clk 0:02:58]}  e5 {[%clk 0:02:56]} 8. e4 {[%clk 0:02:52]}  Nc6 {[%clk 0:02:56]} 9. Ne2 {[%clk 0:02:51]}  Re8 {[%clk 0:02:51]} 10. Bg5 {[%clk 0:02:50]}  h6 {[%clk 0:02:48]} 11. Bxf6 {[%clk 0:02:50]}  Qxf6 {[%clk 0:02:47]} 12. d5 {[%clk 0:02:21]}  Na5 {[%clk 0:02:41]} 13. O-O {[%clk 0:02:20]}  b6 {[%clk 0:02:42]} 14. f4 {[%clk 0:02:19]}  Ba6 {[%clk 0:02:42]} 15. fxe5 {[%clk 0:02:13]}  Qxe5 {[%clk 0:02:41]} 16. Rf5 {[%clk 0:02:10]}  Qe7 {[%clk 0:02:41]} 17. Qa4 {[%clk 0:01:44]}  Rf8 {[%clk 0:02:11]} 18. Ng3 {[%clk 0:01:36]}  g6 {[%clk 0:02:05]} 19. Rf4 {[%clk 0:01:20]}  Qe5 {[%clk 0:01:53]} 20. Raf1 {[%clk 0:00:56]}  Qxc3 {[%clk 0:01:49]} 21. Qd7 {[%clk 0:00:54]}  Qg7 {[%clk 0:01:15]} 22. Rf6 {[%clk 0:00:35]}  Bxc4 {[%clk 0:01:09]} 23. Bxc4 {[%clk 0:00:30]}  Nxc4 {[%clk 0:01:10]} 24. Qxc7 {[%clk 0:00:29]}  Ne3 {[%clk 0:01:04]} 25. R1f3 {[%clk 0:00:26]}  Ng4 {[%clk 0:01:04]} 26. R6f4 {[%clk 0:00:25]}  Qd4+ {[%clk 0:01:01]} 27. Kh1 {[%clk 0:00:21]}  Rac8 {[%clk 0:00:47]} 28. Rxf7 {[%clk 0:00:19]}  Qd1+ {[%clk 0:00:47]} 29. Nf1 {[%clk 0:00:18]}  Qa1 {[%clk 0:00:21]} 30. Rxf8+ {[%clk 0:00:15]}  Rxf8 {[%clk 0:00:22]} 31. Rxf8+ {[%clk 0:00:14]}  Kxf8 {[%clk 0:00:22]} 32. Qxd6+ {[%clk 0:00:14]}  Kg7 {[%clk 0:00:19]} 33. Qd7+ {[%clk 0:00:13]}  Kg8 {[%clk 0:00:18]} 34. Qe8+ {[%clk 0:00:13]}  Kg7 {[%clk 0:00:18]} 35. Qe7+ {[%clk 0:00:12]}  Kg8 {[%clk 0:00:18]} 36. Qe8+ {[%clk 0:00:09]}  Kg7 {[%clk 0:00:19]} 37. Qe7+ {[%clk 0:00:09]}  Kg8 {[%clk 0:00:18]} 38. Qe8+ {[%clk 0:00:10]} 1/2-1/2


[Site "https://www.chess.com"]

[Event "Titled Tuesday Blitz May 2 Late 2023"]
[White "Winkels, Marcel"]
[Black "Gerbelli Neto, Eduardo"]
[WhiteFideId "1003887"]
[BlackFideId "2103281"]
[WhiteElo "1900"]
[BlackElo "2178"]
[Result "1-0"]
[Round "03"]
[TimeControl "180+2"]
[Date "2023.05.02"]
[WhiteClock "0:00:21"]
[BlackClock "0:00:06"]

1. d4 {[%clk 0:03:00]}  d5 {[%clk 0:02:59]} 2. Nc3 {[%clk 0:03:01]}  Nf6 {[%clk 0:02:59]} 3. Bf4 {[%clk 0:03:01]}  Bf5 {[%clk 0:02:58]} 4. e3 {[%clk 0:02:59]}  e6 {[%clk 0:02:59]} 5. Nf3 {[%clk 0:03:00]}  Be7 {[%clk 0:02:54]} 6. Ne5 {[%clk 0:03:00]}  Nbd7 {[%clk 0:02:51]} 7. g4 {[%clk 0:03:00]}  Bg6 {[%clk 0:02:41]} 8. h4 {[%clk 0:02:58]}  h5 {[%clk 0:02:18]} 9. Nxg6 {[%clk 0:02:54]}  fxg6 {[%clk 0:02:19]} 10. Bd3 {[%clk 0:02:47]}  Nxg4 {[%clk 0:02:01]} 11. Bxg6+ {[%clk 0:02:42]}  Kf8 {[%clk 0:02:01]} 12. Qf3 {[%clk 0:02:28]}  Ndf6 {[%clk 0:01:48]} 13. O-O-O {[%clk 0:02:01]}  c5 {[%clk 0:01:39]} 14. dxc5 {[%clk 0:01:56]}  Bxc5 {[%clk 0:01:37]} 15. e4 {[%clk 0:01:55]}  Nxf2 {[%clk 0:01:02]} 16. Rhf1 {[%clk 0:01:33]}  Nxd1 {[%clk 0:00:58]} 17. Rxd1 {[%clk 0:01:29]}  Qa5 {[%clk 0:00:49]} 18. e5 {[%clk 0:01:19]}  Be7 {[%clk 0:00:15]} 19. exf6 {[%clk 0:01:18]}  Bxf6 {[%clk 0:00:16]} 20. Be5 {[%clk 0:01:17]}  Ke7 {[%clk 0:00:16]} 21. Bxf6+ {[%clk 0:00:55]}  gxf6 {[%clk 0:00:16]} 22. Bxh5 {[%clk 0:00:46]}  Rad8 {[%clk 0:00:16]} 23. Bg4 {[%clk 0:00:44]}  f5 {[%clk 0:00:15]} 24. Bh3 {[%clk 0:00:41]}  Rxh4 {[%clk 0:00:15]} 25. Bg2 {[%clk 0:00:39]}  Rg8 {[%clk 0:00:14]} 26. Qe2 {[%clk 0:00:32]}  Kf6 {[%clk 0:00:11]} 27. Bxd5 {[%clk 0:00:28]}  exd5 {[%clk 0:00:09]} 28. Nxd5+ {[%clk 0:00:28]}  Kg6 {[%clk 0:00:05]} 29. Rg1+ {[%clk 0:00:25]}  Kh7 {[%clk 0:00:06]} 30. Qe7+ {[%clk 0:00:23]}  Kh8 {[%clk 0:00:06]} 31. Qxh4# {[%clk 0:00:21]} 1-0


[Site "https://www.chess.com"]

[Event "Titled Tuesday Blitz May 2 Late 2023"]
[White "Fernandez Siles, Luis"]
[Black "Sailer, Mike"]
[WhiteFideId "2209420"]
[BlackFideId "2012901"]
[WhiteElo "2195"]
[BlackElo "2109"]
[Result "1-0"]
[Round "03"]
[TimeControl "180+2"]
[Date "2023.05.02"]
[WhiteClock "0:00:16"]
[BlackClock "0:00:23"]

1. d4 {[%clk 0:03:00]}  d5 {[%clk 0:02:59]} 2. c4 {[%clk 0:03:00]}  Bf5 {[%clk 0:02:58]} 3. cxd5 {[%clk 0:02:56]}  Bxb1 {[%clk 0:02:58]} 4. Qa4+ {[%clk 0:02:56]}  Qd7 {[%clk 0:02:57]} 5. Qxd7+ {[%clk 0:02:53]}  Nxd7 {[%clk 0:02:57]} 6. Rxb1 {[%clk 0:02:54]}  Ngf6 {[%clk 0:02:57]} 7. Bd2 {[%clk 0:02:41]}  Nb6 {[%clk 0:02:56]} 8. f3 {[%clk 0:02:37]}  Nbxd5 {[%clk 0:02:49]} 9. e4 {[%clk 0:02:37]}  Nb6 {[%clk 0:02:47]} 10. d5 {[%clk 0:02:27]}  O-O-O {[%clk 0:02:40]} 11. Nh3 {[%clk 0:02:17]}  h6 {[%clk 0:02:40]} 12. Nf2 {[%clk 0:02:05]}  e6 {[%clk 0:02:41]} 13. dxe6 {[%clk 0:02:03]}  fxe6 {[%clk 0:02:42]} 14. Bc3 {[%clk 0:01:59]}  Na4 {[%clk 0:02:18]} 15. Bd2 {[%clk 0:01:50]}  Bc5 {[%clk 0:02:02]} 16. Nd3 {[%clk 0:01:39]}  Bd4 {[%clk 0:02:00]} 17. Be2 {[%clk 0:01:21]}  Kb8 {[%clk 0:01:49]} 18. a3 {[%clk 0:01:08]}  c5 {[%clk 0:01:44]} 19. Nf4 {[%clk 0:01:04]}  Rhe8 {[%clk 0:01:30]} 20. Bb5 {[%clk 0:01:02]}  Nxb2 {[%clk 0:01:23]} 21. Bxe8 {[%clk 0:01:00]}  Rxe8 {[%clk 0:01:24]} 22. Ke2 {[%clk 0:00:50]}  c4 {[%clk 0:01:11]} 23. Rhc1 {[%clk 0:00:47]}  b5 {[%clk 0:01:10]} 24. Bc3 {[%clk 0:00:45]}  Bxc3 {[%clk 0:01:03]} 25. Rxc3 {[%clk 0:00:46]}  Na4 {[%clk 0:01:01]} 26. Rxb5+ {[%clk 0:00:45]}  Ka8 {[%clk 0:00:58]} 27. Rxc4 {[%clk 0:00:43]}  Nb6 {[%clk 0:00:57]} 28. Rc7 {[%clk 0:00:39]}  g5 {[%clk 0:00:54]} 29. Nd3 {[%clk 0:00:36]}  Rd8 {[%clk 0:00:52]} 30. Ra5 {[%clk 0:00:31]}  Nc8 {[%clk 0:00:52]} 31. Nc5 {[%clk 0:00:26]}  Ne8 {[%clk 0:00:50]} 32. Rh7 {[%clk 0:00:20]}  Ned6 {[%clk 0:00:45]} 33. Nxe6 {[%clk 0:00:19]}  Rg8 {[%clk 0:00:43]} 34. Nc7+ {[%clk 0:00:18]}  Kb8 {[%clk 0:00:43]} 35. Nb5 {[%clk 0:00:15]}  Nc4 {[%clk 0:00:39]} 36. Ra4 {[%clk 0:00:16]}  N4b6 {[%clk 0:00:28]} 37. Rb4 {[%clk 0:00:16]}  Rd8 {[%clk 0:00:25]} 38. Nxa7 {[%clk 0:00:16]}  Nxa7 {[%clk 0:00:23]} 39. Rxb6+ {[%clk 0:00:16]}  Ka8 {[%clk 0:00:23]} 40. Ra6 {[%clk 0:00:16]} 1-0


[Site "https://www.chess.com"]